Cogmind - Beta 13 @@@ ROGUE MODE // 2024.03.24 @ 21:56:42 Player: Baxter Result: Destroyed by EE-USN(R) with Subdweller Beam Cannon Performance ------------- Evolutions (0) 0 Regions Visited (3) 600 Robots Destroyed (37) 185 Value Destroyed (626) 626 Prototype IDs (0) 0 Alien Tech Used (0) 0 Bonus (0) 0 TOTAL SCORE: 1411 Bonus ------- None Cogmind --------- Core Integrity 0/250 Matter 140/300 Energy 240/240 System Corruption 0% Temperature Cool (9) Movement Treading (160) Location -10/Subcaves Parts ------- > --- POWER (1) -------- Nuclear Core > --- PROPULSION (2) --- Light Treads Spiked Treads > --- UTILITY (2) ------ Medium Storage Unit Improved Light Armor Plating > --- WEAPON (2) ------- Minigun Makeshift Sword > --- INVENTORY (10) --- Structural Scanner Improved Terrain Scanner Seismic Detector Light Armor Plating Makeshift Hacking Suite Assault Rifle Assault Rifle Subdweller Machine Gun Battle Cannon Subdweller Shrapnel Launcher Peak State ------------ > --- POWER ------------ Nuclear Core > --- PROPULSION ------- Light Treads Spiked Treads > --- UTILITY ---------- Medium Storage Unit Improved Light Armor Plating > --- WEAPON ----------- Minigun Makeshift Sword > --- INVENTORY -------- Structural Scanner Improved Terrain Scanner Seismic Detector Light Armor Plating Makeshift Hacking Suite Assault Rifle Assault Rifle Subdweller Machine Gun Battle Cannon [Rating: 18] Favorites ----------- Power Light Ion Engine Engine Light Ion Engine Power Core Nuclear Core Propulsion Aluminum Leg Treads Light Treads Leg Aluminum Leg Utility Medium Storage Unit Device Seismic Detector Storage Medium Storage Unit Protection Light Armor Plating Weapon Assault Rifle Energy Gun EM Shotgun Ballistic Gun Assault Rifle Ballistic Cannon Battle Cannon Impact Weapon Hammer Slashing Weapon Makeshift Sword Build | -11 -10 -10 -10 ------- Run | Yrd Mat Min Sub Slots Evolved . | . . . . Power . | . . . . Propulsion . | . . . . Utility . | . . . . Weapon . | . . . . Parts Attached 48 | 7 11 3 27 Power 2 | 1 . . 1 Engine 1 | 1 . . . Core 1 | . . . 1 Reactor . | . . . . Propulsion 8 | 2 . 3 3 Treads 3 | . . . 3 Leg 5 | 2 . 3 . Wheel . | . . . . Hover . | . . . . Flight . | . . . . Utility 19 | 2 1 . 16 Device 12 | 1 . . 11 Storage 2 | 1 1 . . Processor . | . . . . Hackware . | . . . . Protection 5 | . . . 5 Artifact . | . . . . Weapon 19 | 2 10 . 7 Energy Gun 7 | 1 6 . . Energy Cannon . | . . . . Ballistic Gun 7 | 1 3 . 3 Ballistic Cannon 1 | . . . 1 Launcher . | . . . . Special Weapon . | . . . . Impact Weapon 2 | . 1 . 1 Slashing Weapon 2 | . . . 2 Piercing Weapon . | . . . . Special Melee Weapon . | . . . . Unidentified Prototypes . | . . . . Parts Lost 3 | . 2 . 1 Power 1 | . . . 1 Propulsion . | . . . . Utility . | . . . . Weapon 2 | . 2 . . Highest Loss Streak 1 | . 1 . 1 To Critical Strikes . | . . . . Average Slot Usage (%) 99 | . 99 100 99 Engine 12 | . 14 14 11 Core 1 | . . . 1 Treads 10 | . . . 19 Leg 17 | . 28 28 8 Device 11 | . 14 14 10 Storage 14 | . 14 14 14 Protection 2 | . . . 3 Energy Gun 4 | . 21 . . Ballistic Gun 16 | . 5 28 17 Impact Weapon 2 | . . . 4 Slashing Weapon 2 | . . . 4 Naked Turns . | . . . . Heaviest Build 26 | 13 20 18 26 Greatest Support 40 | 20 20 20 40 Greatest Overweight (x) 1 | 1 . . 1 Average Overweight (x) . | . . . . Largest Inventory Capacity 10 | 8 10 10 10 Average Capacity 9 | 7 9 10 10 Most Carried 10 | 7 10 10 10 Average Carried 9 | 5 9 9 9 Final Capacity 10 | 8 10 10 10 Final Carried 10 | 7 10 10 10 Class Distribution -------------------- 100% | Mutant Dominant Class ---------------- Mutant | -10/Materials Mutant | -10/Mines Mutant | -10/Subcaves Resources | -11 -10 -10 -10 ----------- Run | Yrd Mat Min Sub Matter Collected 848 | 216 194 114 324 Remotely . | . . . . Salvage Created 1106 | 115 479 249 263 Parts 83 | 9 39 15 20 Haulers Intercepted 1 | . 1 . . Recyclers Shooed . | . . . . Parts Field Recycled . | . . . . Retrieved Matter . | . . . . Parts Self-Destructed 7 | . . . 7 Prevented . | . . . . Kills | -11 -10 -10 -10 ------- Run | Yrd Mat Min Sub Combat Hostiles Destroyed 20 | . 10 3 7 Melee 2 | . . . 2 Guns 18 | . 10 3 5 Classes Destroyed 9 | 2 6 1 . Worker 6 | 2 2 2 . Builder 1 | . 1 . . Tunneler 4 | 3 . 1 . Hauler 1 | . 1 . . Recycler 2 | . . 2 . Watcher 3 | . 3 . . Swarmer 9 | . 6 3 . Grunt 3 | . 3 . . Subdweller 8 | . 1 . 7 Best Kill Streak 7 | 3 7 4 2 Combat Bots Only 6 | . 6 3 2 Max Kills in Single Turn 2 | 2 2 1 1 Gunslinging . | . . . . Exploded . | . . . . Melee 1 | . . . 1 Uniques/NPCs Destroyed . | . . . . Combat | -11 -10 -10 -10 -------- Run | Yrd Mat Min Sub Hostile Shots Fired 98 | . 29 8 61 Missed 30 | . 7 4 19 Damage Taken 1212 | . 285 29 898 Core 250 | . 100 . 150 Absorbed by Shields . | . . . . Core Remaining (%) 100 | 100 . . . Volleys Fired 84 | 8 31 14 31 Largest 2 | 2 2 2 2 Hottest 90 | 70 90 40 64 Shots Fired 159 | 16 59 28 56 Gun 142 | 16 59 28 39 Cannon 17 | . . . 17 Launcher . | . . . . Special . | . . . . Kinetic 94 | 8 2 28 56 Thermal 8 | 8 . . . Explosive . | . . . . Electromagnetic 57 | . 57 . . Robot Hit Streak 13 | 6 6 6 13 Robot Miss Streak 4 | 2 4 3 3 Penetration Max . | . . . . Secondary Targets . | . . . . Shots Hit Robots 122 | 10 44 18 50 Core Hits 56 | 5 28 9 14 Critical Kills . | . . . . Critical Parts Destroyed . | . . . . Critical Strikes 1 | . . . 1 Sever 1 | . . . 1 Melee Attacks 40 | . 2 . 38 Impact 21 | . 2 . 19 Slashing 19 | . . . 19 Piercing . | . . . . Sneak Attacks 1 | . 1 . . Combat Hostiles . | . . . . Follow-up Attacks . | . . . . Damage Inflicted 2084 | 136 725 222 1001 Guns 1404 | 136 596 222 450 Cannons 300 | . . . 300 Explosions 46 | . 46 . . Melee 334 | . 83 . 251 Ramming . | . . . . Kinetic 1048 | 63 13 222 750 Thermal 119 | 73 46 . . Explosive . | . . . . Electromagnetic 583 | . 583 . . Impact 83 | . 83 . . Slashing 251 | . . . 251 Piercing . | . . . . Highest Corruption . | . . . . Average Corruption . | . . . . Corruption Purged . | . . . . Corruption Blocked . | . . . . Overload Shots . | . . . . Overflow Damage 33 | . 33 . . Projectiles . | . . . . Explosions . | . . . . Melee 33 | . 33 . . Knockbacks 6 | . 1 . 5 Impact 1 | . 1 . . Kinetic 5 | . . . 5 Secondary . | . . . . Self-Inflicted Damage . | . . . . Shots . | . . . . Rammed . | . . . . Targets Rammed . | . . . . Kicked . | . . . . Crushed . | . . . . Highest Temperature 260 | 38 260 . . Average Temperature 84 | 17 97 . . Received Heat Transfer 87 | . 36 . 51 Siege Activations . | . . . . Robots Corrupted . | . . . . Combat Hostiles . | . . . . Parts Fried 5 | . 5 . . Impact Corruptions 2 | . 2 . . Robots Melted . | . . . . Combat Hostiles . | . . . . Parts Melted . | . . . . Heat Transferred 272 | 222 50 . . Parts Sabotaged . | . . . . Parts Stolen . | . . . . Parts Stripped . | . . . . Power Chain Reactions 1 | . 1 . . Alert | -11 -10 -10 -10 ------- Run | Yrd Mat Min Sub Peak Influence 270 | 25 270 100 . Initial 16 | . 16 10 . Average 68 | 5 113 31 . Maximum Alert Level 1 | . 1 . . Low Security (%) 97 | 100 93 100 . Level 1 2 | . 6 . . Level 2 . | . . . . Level 3 . | . . . . Level 4 . | . . . . Level 5 . | . . . . High Security . | . . . . Max Security . | . . . . Squads Dispatched 2 | . 1 1 . Investigation 1 | . . 1 . Extermination . | . . . . Reinforcement 1 | . 1 . . Assault . | . . . . Garrison . | . . . . Intercept . | . . . . Searches Triggered . | . . . . Construction Impeded . | . . . . Haulers Reinforced . | . . . . Active Scanning Responses . | . . . . Cargo Convoy Interrupts . | . . . . Stealth | -11 -10 -10 -10 --------- Run | Yrd Mat Min Sub Distress Signals 2 | . 2 . . Communications Jammed . | . . . . Distress Signals . | . . . . Times Spotted 40 | . 23 4 13 Peak Tracking Total 6 | . 6 2 2 Tactical Retreats 5 | . 2 . 3 Traps | -11 -10 -10 -10 ------- Run | Yrd Mat Min Sub Traps Triggered . | . . . . Indirectly . | . . . . Trap Hack Attempts . | . . . . Triggered . | . . . . Disarmed . | . . . . Reprogrammed . | . . . . Reused . | . . . . Traps Extracted . | . . . . Installed . | . . . . Triggered . | . . . . Machines | -11 -10 -10 -10 ---------- Run | Yrd Mat Min Sub Machines Disabled 1 | . 1 . . Max in Single Turn 1 | . 1 . . Machines Repaired . | . . . . Machines Dismantled . | . . . . Machines Sabotaged . | . . . . Overloaded Fab Kills . | . . . . Hacking | -11 -10 -10 -10 --------- Run | Yrd Mat Min Sub Machines Accessed 6 | . 5 1 . Terminals 5 | . 5 . . Fabricators . | . . . . Repair Stations . | . . . . Recycling Units . | . . . . Scanalyzers . | . . . . Garrison Access . | . . . . Total Hacks 14 | . 13 1 . Successful 6 | . 5 1 . Failed 8 | . 8 . . Catastrophic 2 | . 2 . . Database Lockouts . | . . . . Manual 13 | . 13 . . Terminals 13 | . 13 . . Fabricators . | . . . . Repair Stations . | . . . . Recycling Units . | . . . . Scanalyzers . | . . . . Garrison Access . | . . . . Terminal Hacks 1 | . . 1 . Open Door 1 | . . 1 . Fabricator Hacks . | . . . . Repair Station Hacks . | . . . . Recycling Unit Hacks . | . . . . Scanalyzer . | . . . . Garrison Access Hacks . | . . . . Unauthorized Hacks 5 | . 5 . . Terminals 5 | . 5 . . Botnet 5 | . 5 . . Fabricators . | . . . . Repair Stations . | . . . . Recycling Units . | . . . . Scanalyzers . | . . . . Garrison Access . | . . . . Data Cores Recovered . | . . . . Used . | . . . . Hacking Detections 5 | . 5 . . Full Trace Events . | . . . . Feedback Events . | . . . . Feedback Blocked . | . . . . Robot Schematics Acquired . | . . . . Robots Built . | . . . . Authchips . | . . . . Time . | . . . . Total Robot Build Rating . | . . . . Part Schematics Acquired . | . . . . Parts Built . | . . . . Authchips . | . . . . Time . | . . . . Total Part Build Rating . | . . . . Parts Repaired . | . . . . Time . | . . . . Parts Recycled . | . . . . Recycled Matter . | . . . . Retrieved Matter . | . . . . Retrieved Components . | . . . . Parts Scanalyzed . | . . . . Part Schematics Acquired . | . . . . Parts Damaged . | . . . . Bothacking | -11 -10 -10 -10 ------------ Run | Yrd Mat Min Sub Used RIF Installer . | . . . . Robots Hacked . | . . . . Non-combat . | . . . . Combat . | . . . . Robot Hacks Applied . | . . . . Relay Couplers Released . | . . . . Fabnet Peak Effective % . | . . . . Robots Rewired . | . . . . Allies Hacked . | . . . . Hacks Repelled . | . . . . Allies | -11 -10 -10 -10 -------- Run | Yrd Mat Min Sub Total Allies 1 | . . 1 . Largest Group 1 | . . 1 . Highest-Rated Group 31 | . . 31 . Highest-Rated Ally 31 | . . 31 . Total Orders . | . . . . Ally Attacks . | . . . . Total Damage . | . . . . Kills . | . . . . Allies Corrupted . | . . . . Allies Melted . | . . . . Intel | -11 -10 -10 -10 ------- Run | Yrd Mat Min Sub Robot Analysis Total . | . . . . Derelict Logs Recovered 2 | . . 2 . Drone Launches . | . . . . Drone Recoveries . | . . . . Exploration | -11 -10 -10 -10 ------------- Run | Yrd Mat Min Sub Turns Passed 4107 | 112 865 867 2263 Spaces Moved 2450 | 55 602 634 1159 Core 2 | 2 . . . Treads 1133 | . . . 1133 Legs 1315 | 53 602 634 26 Wheels . | . . . . Hover . | . . . . Flight . | . . . . Fastest Speed 50 | 50 120 120 120 Average Speed 143 | 128 120 120 168 Slowest Speed 240 | 190 120 120 240 Overloaded Moves . | . . . . Propulsion Burnouts . | . . . . Robots Hopped . | . . . . Cave-ins Triggered . | . . . . Exploration Rate (%) 58 | 5 85 94 49 Regions Visited 3 Branch Regions 2 Pre-discovered Areas . | . . . . Known Exits Taken . | . . . . Unknown Exits Taken 3 | 1 1 1 . Scrap Searched 2 | . . 1 1 Spaces Dug 1 | . . . 1 Terrain Destroyed 3 | . 2 . 1 Melee 1 | . . . 1 Projectile . | . . . . AOE 2 | . 2 . . Terrain Rammed . | . . . . Walls Destroyed . | . . . . Machines Disabled . | . . . . Actions | -11 -10 -10 -10 --------- Run | Yrd Mat Min Sub Total 2835 | 76 683 717 1359 Wait 166 | . 18 56 92 Move 2447 | 54 601 633 1159 Hop . | . . . . Pick Up 25 | 7 9 4 5 Fast Attach 14 | 7 5 . 2 Attach 3 | . 2 . 1 Detach 1 | . 1 . . Swap 31 | . 4 3 24 Drop 24 | . 10 7 7 Fire 84 | 8 31 14 31 Melee 40 | . 2 . 38 Ram . | . . . . Kick . | . . . . Crush . | . . . . Escape Stasis . | . . . . Rewire . | . . . . Trap . | . . . . Miscellaneous . | . . . . Route ------- -11/Scrapyard -10/Materials (discovered 5 exits: [*Mat x3] / *Min x2) -10/Mines (discovered 4 exits: [*Mat x2] / [*Exi] / [*Sub]) -10/Subcaves (discovered 1 exit: [*Mat]) History --------- Turn | Location | Event 28 | -11/Scrapyard | Discovered new exit (range 14) 113 | -11/Scrapyard | Entered Materials 272 | -10/Materials | Discovered new exit (range 4) 307 | -10/Materials | Build established: Mutant 338 | -10/Materials | Discovered new exit (range 6) 405 | -10/Materials | Discovered new exit (range 9) 527 | -10/Materials | Discovered new exit (range 15) 700 | -10/Materials | Derelicts attacked the area 824 | -10/Materials | Discovered new exit (range 4) 978 | -10/Materials | Entered Mines 1011 | -10/Mines | Met a Derelict shopkeep closing up shop 1018 | -10/Mines | Met a Derelict bent on vengeance 1084 | -10/Mines | Discovered new exit (range 9) 1145 | -10/Mines | Learned 4 Materials zone layouts 1165 | -10/Mines | Discovered new exit (range 12) 1520 | -10/Mines | Deemed a non-threat by the Exiles lab entrance 1521 | -10/Mines | Discovered new exit (range 5) 1540 | -10/Mines | Received a Mining Laser from a helpful Derelict 1839 | -10/Mines | Discovered new exit (range 6) 1845 | -10/Mines | Entered Subcaves 1910 | -10/Subcaves | Discovered new exit (range 12) 3095 | -10/Subcaves | Shifting Twisted Machinery released Mak. Sword 3429 | -10/Subcaves | Shifting Twisted Machinery released Battle Cannon 3584 | -10/Subcaves | A swath of the cavern ceiling suddenly collapsed 3781 | -10/Subcaves | Core integrity fell below 50% 3805 | -10/Subcaves | Core integrity fell below 20% 4005 | -10/Subcaves | Ambushed by Subdweller buried in earth 4108 | -10/Subcaves | Destroyed by EE-USN(R) with Subdweller Beam Cannon Last Messages --------------- 03767_ GH-1MS(R) knocked back. 03786_ 00-CJG(R) knocked back. 03786_ GH-1MS(R) destroyed. 03793_ 00-CJG(R) affixes Scrap Shield Fragment to Scrap Shield. 03797_ MG-NT8(O) collects matter. 03811_ 00-CJG(R) destroyed. 03819_ Acquired 6 matter. 03820_ Acquired 22 matter. 03825_ Acquired 3 matter. 03997_ YG-SJW(R) destroyed. 03999_ Acquired 45 matter. 04004_ ZL-K3X(R) affixes Scrap Shield Fragment to Scrap Shield. 04005_ ZL-K3X(R) destroyed. 04006_ PA-2XR(R): "HIDIE!" 04011_ PA-2XR(R) destroyed. 04014_ Acquired Sub. Shrapnel Launcher. 04015_ Acquired 31 matter. 04019_ Acquired 43 matter. Map ----- +----------------------------------------------------+ | | | | | | | | | ?????????????????????????????????????????????????? | | ?????????????????????????????????????????????????? | | ?????????????????????????????????????????????????? | | ?????????????????????????????????????????????????? | | ?????????????????????????????????????????????????? | | ?????????????????????????????????????????????????? | | ?????????????????????????????????????????????????? | | ?????????????????????????????????????????????????? | | ?????????????????????????????????????????????????? | | ?????????????????????????????????????????????????? | | ?????????????????????????????????????????????????? | | ?????????????????????????????????????????????##??? | | ?????????????????????????????????????????????"#??? | | ???????????????????????????????????????????## #??? | | ???????????????????????????????????????##### ???? | | ?????????????????????????????????????### ##" #???# | | ????????????????????????????????????## ## ##### | | ??????????????????????###???????????# " " | | ??????????????????????# ##???###????### | | ?????????????????????## #??## ######### ### | | ?????????????????????# #### "" " ## ##?# | | ?????????????????????# @## & #??# | | ???????????????????### R###" *=& ## #?# | | ???????????????????# # ##" !& #### # | | ??????????????????## "" ##?## | | ??????????????????# " = #??## | | ??????????????????#### "" #??##### | | ?????????????????????#" "" "" ##???????# | | ?????????????????????##" "" # #????????? | | ??????????????????????##" ## #????????? | | ???????????????????????#"" ### #???????? | | ???????????????????????#"" #?## # #??????? | | ??????????????????????# ""#??####### ?????? | | ??????????????????????### "#????????###### #????? | | ????????????????????????####??????????????###????? | | ?????????????????????????????????????????????????? | | ?????????????????????????????????????????????????? | | ?????????????????????????????????????????????????? | | ?????????????????????????????????????????????????? | | ?????????????????????????????????????????????????? | | ?????????????????????????????????????????????????? | | ?????????????????????????????????????????????????? | | ?????????????????????????????????????????????????? | | ?????????????????????????????????????????????????? | | ?????????????????????????????????????????????????? | | ?????????????????????????????????????????????????? | +----------------------------------------------------+ Best States ------------- Heat Dissipation 25 Energy Generation 14 Energy Capacity 240 Matter Stores 300 Matter Capacity 300 Sight Range 16 Terrain Scan Density 10 Armor Coverage 150 Evasion (%) 55 Recoil Reduction 2 Item Schematics ----------------- None Robot Schematics ------------------ None Fabricated ------------ Nothing Alien Tech Used ----------------- None Achievements -------------- None Challenges ------------ None Game ------ Seed VortexReactionCapacitor Manual? 0 Play Time 00:26:15 Cumulative 63.2 hours Start 2024.03.24 @ 21:32:53 End 2024.03.24 @ 21:56:42 Sessions 1 Manual Loads 0 Difficulty Rogue Special Mode None Game No. 67 Rogue 67 Adventurer 0 Explorer 0 Win Type - Total 0 Types 0/0/0/0/0/0/0/0/0 Lore% 32 Gallery% 41 Achievement% 33 Wizard Run 0 Options --------- Layout 1 ASCII 0 Keyboard 0 Movement Numpad Keybinds 0 Fullscreen 2 Font 24/X11 Map View 50x35 Zoom Use 0% Tactical HUD 1 Map Filters NONE Filters NONE Steam 0 RUN: e348379d-1b21-46ba-9b23-0fd243e9e6f6